{"text_format":"1","workbook":"xlsx","n_sheets":3,"sheets":["tenttype","toewijzing","printblad"],"not_rendered":{"charts":0,"images":0,"macros":1,"external_links":0,"defined_names":1,"comments":0,"pivot_tables":0},"unopened":[],"bounds":{"document_bytes":16777216,"sheet_cells":100000,"rows_first":2000,"rows_last":500,"rows_between":2000,"halvings":0,"cell_chars":16384,"cell_head_chars":4096},"cells_cut":0,"cells_raw":0,"read":"whole","date_system":"1900"}

{"sheet":"tenttype","index":0,"n_rows":27,"n_cols":4,"rows_kept":27,"cut":false,"hidden":false,"merged":[[15,2,20,2],[21,2,26,2],[11,2,14,2]]}
[]
[]
[null,null,"NAAM:"]
[null,null,"KLAS:"]
[]
[null,null,"Vul in de kolom type tent, de letter in van het geschikte type tent."]
[]
[null,null,"type tent","Indeling in boomtenten"]
[null,null,null,"begeleider Tom (m)"]
[null,null,null,"begeleider Jasmine (v)"]
[null,null,null,"Niek (m) en René (m)"]
[null,null,null,"Thijs (m)"]
[null,null,null,"Vincent (m)"]
[null,null,null,"Maks (m)"]
[null,null,null,"Cees (m)"]
[null,null,null,"Eva (v)"]
[null,null,null,"Jaantje (v)"]
[null,null,null,"Yousra (v)"]
[null,null,null,"Sem (v)"]
[null,null,null,"Raismarie (v)"]
[null,null,null,"Sjari (v)"]
[null,null,null,"Daan (m)"]
[null,null,null,"Luuk (m)"]
[null,null,null,"Nick (m)"]
[null,null,null,"Quincy (m)"]
[null,null,null,"Boris (m)"]
[null,null,null,"Achmed (m)"]

{"sheet":"toewijzing","index":1,"n_rows":46,"n_cols":24,"rows_kept":46,"cut":false,"hidden":true,"merged":[[40,2,40,12],[7,4,7,12],[18,2,18,12],[5,2,5,6],[7,3,8,3],[7,2,8,2],[5,9,5,12],[2,4,2,6],[3,4,3,6],[26,2,26,12],[34,2,34,12],[2,8,2,12],[3,9,3,12],[4,9,4,12]]}
[]
[]
[null,null,"Kandidaatnaam:",null,{"$f":"tenttype!D3","v":0},null,null,null,"betekenis van de kleuren in het schema:",null,null,null,null,null,null,null,"nr.","aantal","Je hebt gereserveerd:"]
[null,null,"Kandidaatnummer:",null,{"$f":"tenttype!D4","v":0},null,null,null,null,"deze plaats is al bezet",null,null,null,null,null,null,"T/C",null,{"$f":"IFERROR(\"nrs. \"&LEFT(X19,LEN(X19)-1),\"\")","v":""}]
[null,null,null,null,null,null,null,null,null,"deze plaats is voorlopig gereserveerd",null,null,null,null,null,null,"A",3,{"$f":"IFERROR(\"nrs. \"&LEFT(X27,LEN(X27)-1),\"\")","v":""}]
[null,null,"toewijzing accommodaties",null,null,null,null,null,null,"deze plaats is nog beschikbaar",null,null,null,null,null,null,"B",null,{"$f":"IFERROR(\"nrs. \"&LEFT(X35,LEN(X35)-1),\"\")","v":""}]
[null,null,null,null,null,null,null,null,null,null,null,null,null,null,null,null,"C",1,{"$f":"IFERROR(\"nrs. \"&LEFT(X41,LEN(X41)-1),\"\")","v":""}]
[null,null,"nr.","accommodaties","datums augustus 2021",null,null,null,null,null,null,null,null,null,null,null,"D",2,{"$f":"IFERROR(\"nrs. \"&LEFT(X46,LEN(X46)-1),\"\")","v":""}]
[null,null,null,null,"di 10-8","wo 11-8","do 12-8","vr 13-8","za 14-8","zo 15-8","ma 16-8","di 17-8","wo 18-8"]
[]
[null,null,1,"staplek tent / caravan",null,null,null,null,null,null,null,null,null,null,null,null,null,null,null,null,null,null,null,{"$f":"IF(COUNTIF(E11:M11,\"ü\")>0,C11&\"-\",\"\")","v":""}]
[null,null,2,"staplek tent / caravan",null,null,null,null,null,null,null,null,null,null,null,null,null,null,null,null,null,null,null,""]
[null,null,3,"staplek tent / caravan",null,null,null,null,null,null,null,null,null,null,null,null,null,null,null,null,null,null,null,""]
[null,null,4,"staplek tent / caravan",null,null,null,null,null,null,null,null,null,null,null,null,null,null,null,null,null,null,null,""]
[null,null,5,"staplek tent / caravan",null,null,null,null,null,null,null,null,null,null,null,null,null,null,null,null,null,null,null,""]
[null,null,6,"staplek tent / caravan",null,null,null,null,null,null,null,null,null,null,null,null,null,null,null,null,null,null,null,""]
[null,null,7,"staplek tent / caravan",null,null,null,null,null,null,null,null,null,null,null,null,null,null,null,null,null,null,null,""]
[null,null,8,"staplek tent / caravan"]
[null,null,null,null,null,null,null,null,null,null,null,null,null,null,null,null,null,null,null,null,null,null,null,{"$f":"X11&X12&X13&X14&X15&X16&X17&X18","v":""}]
[null,null,9,"boomtent A",null,null,null,null,null,null,null,null,null,null,null,null,null,null,null,null,null,null,null,{"$f":"IF(COUNTIF(E20:M20,\"ü\")>0,C20&\"-\",\"\")","v":""}]
[null,null,20,"boomtent A",null,null,null,null,null,null,null,null,null,null,null,null,null,null,null,null,null,null,null,""]
[null,null,22,"boomtent A",null,null,null,null,null,null,null,null,null,null,null,null,null,null,null,null,null,null,null,""]
[null,null,23,"boomtent A",null,null,null,null,null,null,null,null,null,null,null,null,null,null,null,null,null,null,null,""]
[null,null,26,"boomtent A",null,null,null,null,null,null,null,null,null,null,null,null,null,null,null,null,null,null,null,""]
[null,null,27,"boomtent A",null,null,null,null,null,null,null,null,null,null,null,null,null,null,null,null,null,null,null,""]
[null,null,30,"boomtent A",null,null,null,null,null,null,null,null,null,null,null,null,null,null,null,null,null,null,null,""]
[null,null,null,null,null,null,null,null,null,null,null,null,null,null,null,null,null,null,null,null,null,null,null,{"$f":"X20&X21&X22&X23&X24&X25&X26","v":""}]
[null,null,10,"boomtent B",null,null,null,null,null,null,null,null,null,null,null,null,null,null,null,null,null,null,null,{"$f":"IF(COUNTIF(E28:M28,\"ü\")>0,C28&\"-\",\"\")","v":""}]
[null,null,11,"boomtent B",null,null,null,null,null,null,null,null,null,null,null,null,null,null,null,null,null,null,null,""]
[null,null,17,"boomtent B",null,null,null,null,null,null,null,null,null,null,null,null,null,null,null,null,null,null,null,""]
[null,null,19,"boomtent B",null,null,null,null,null,null,null,null,null,null,null,null,null,null,null,null,null,null,null,""]
[null,null,21,"boomtent B",null,null,null,null,null,null,null,null,null,null,null,null,null,null,null,null,null,null,null,""]
[null,null,28,"boomtent B",null,null,null,null,null,null,null,null,null,null,null,null,null,null,null,null,null,null,null,""]
[null,null,32,"boomtent B",null,null,null,null,null,null,null,null,null,null,null,null,null,null,null,null,null,null,null,""]
[null,null,null,null,null,null,null,null,null,null,null,null,null,null,null,null,null,null,null,null,null,null,null,{"$f":"X28&X29&X30&X31&X32&X33&X34","v":""}]
[null,null,12,"boomtent C",null,null,null,null,null,null,null,null,null,null,null,null,null,null,null,null,null,null,null,{"$f":"IF(COUNTIF(E36:M36,\"ü\")>0,C36&\"-\",\"\")","v":""}]
[null,null,14,"boomtent C",null,null,null,null,null,null,null,null,null,null,null,null,null,null,null,null,null,null,null,{"$f":"IF(COUNTIF(E37:M37,\"ü\")>0,C37&\"-\",\"\")","v":""}]
[null,null,15,"boomtent C",null,null,null,null,null,null,null,null,null,null,null,null,null,null,null,null,null,null,null,{"$f":"IF(COUNTIF(E38:M38,\"ü\")>0,C38&\"-\",\"\")","v":""}]
[null,null,31,"boomtent C",null,null,null,null,null,null,null,null,null,null,null,null,null,null,null,null,null,null,null,{"$f":"IF(COUNTIF(E39:M39,\"ü\")>0,C39&\"-\",\"\")","v":""}]
[null,null,33,"boomtent C",null,null,null,null,null,null,null,null,null,null,null,null,null,null,null,null,null,null,null,{"$f":"IF(COUNTIF(E40:M40,\"ü\")>0,C40&\"-\",\"\")","v":""}]
[null,null,null,null,null,null,null,null,null,null,null,null,null,null,null,null,null,null,null,null,null,null,null,{"$f":"X36&X37&X38&X39&X40","v":""}]
[null,null,16,"boomtent D",null,null,null,null,null,null,null,null,null,null,null,null,null,null,null,null,null,null,null,{"$f":"IF(COUNTIF(E42:M42,\"ü\")>0,C42&\"-\",\"\")","v":""}]
[null,null,18,"boomtent D",null,null,null,null,null,null,null,null,null,null,null,null,null,null,null,null,null,null,null,{"$f":"IF(COUNTIF(E43:M43,\"ü\")>0,C43&\"-\",\"\")","v":""}]
[null,null,24,"boomtent D",null,null,null,null,null,null,null,null,null,null,null,null,null,null,null,null,null,null,null,{"$f":"IF(COUNTIF(E44:M44,\"ü\")>0,C44&\"-\",\"\")","v":""}]
[null,null,25,"boomtent D",null,null,null,null,null,null,null,null,null,null,null,null,null,null,null,null,null,null,null,{"$f":"IF(COUNTIF(E45:M45,\"ü\")>0,C45&\"-\",\"\")","v":""}]
[null,null,null,null,null,null,null,null,null,null,null,null,null,null,null,null,null,null,null,null,null,null,null,{"$f":"X42&X43&X44&X45","v":""}]

{"sheet":"printblad","index":2,"n_rows":21,"n_cols":4,"rows_kept":21,"cut":false,"hidden":true,"merged":[[2,3,2,6],[3,3,3,6],[20,3,20,6],[14,2,14,6],[16,3,16,6],[17,3,17,6],[18,3,18,6],[19,3,19,6],[5,2,5,6],[7,3,7,6],[8,3,8,6],[9,3,9,6],[10,3,10,6],[12,3,12,6]]}
[]
[]
[null,null,{"$f":"toewijzing!C3","v":"Kandidaatnaam:"},{"$f":"toewijzing!E3","v":0}]
[null,null,{"$f":"toewijzing!C4","v":"Kandidaatnummer:"},{"$f":"toewijzing!E4","v":0}]
[]
[null,null,"type tent"]
[]
[null,null,{"$f":"\"type tent \" & UPPER(tenttype!C9)","v":"type tent "},{"$f":"tenttype!D9","v":"begeleider Tom (m)"}]
[null,null,{"$f":"\"type tent \" & UPPER(tenttype!C10)","v":"type tent "},{"$f":"tenttype!D10","v":"begeleider Jasmine (v)"}]
[null,null,{"$f":"\"type tent \" & UPPER(tenttype!C11)","v":"type tent "},{"$f":"tenttype!D11","v":"Niek (m) en René (m)"}]
[null,null,{"$f":"\"type tent \" & UPPER(tenttype!C12)","v":"type tent "},"jongensgroep 1"]
[null,null,{"$f":"\"type tent \" & UPPER(tenttype!C16)","v":"type tent "},"meisjesgroep"]
[null,null,{"$f":"\"type tent \" & UPPER(tenttype!C22)","v":"type tent "},"jongensgroep 2"]
[]
[null,null,"aangewezen plaatsen"]
[]
[null,null,"staplek tent / caravan"]
[null,null,"boomtent A"]
[null,null,"boomtent B"]
[null,null,"boomtent C"]
[null,null,"boomtent D"]